bitfinex-derivatives/quotes_SOLF0:USTF0_20260306
["timestamp","ask_amount","ask_price","bid_price","bid_amount"]
[1772818105310,10.665,84.378,84.32,18.88013156]
[1772818105609,10.664,84.386,84.335,18.88013156]
[1772818105799,18.6342461,84.385,84.335,18.88013156]
[1772818106705,18.6342461,84.389,84.317,18.88013156]
[1772818106914,18.6342461,84.389,84.299,18.88013156]
[1772818107108,10.67,84.341,84.299,18.88013156]
[1772818107302,18.6342461,84.349,84.271,18.88013156]
[1772818108512,10.672,84.324,84.271,18.88013156]
[1772818108707,18.6342461,84.349,84.271,18.88013156]
[1772818109104,10.67,84.344,84.29,10.676]
[1772818110112,18.6342461,84.365,84.291,18.88013156]
[1772818110911,18.6342461,84.319,84.261,18.88013156]
[1772818111615,18.6342461,84.319,84.263,17.86133883]
[1772818112005,17.50379464,84.339,84.263,17.86133883]
[1772818112709,17.50379464,84.337,84.263,17.86133883]
[1772818113712,17.50379464,84.327,84.263,17.86133883]
[1772818114611,10.672,84.322,84.263,17.86133883]
[1772818115715,28.17579464,84.322,84.263,17.86133883]
[1772818116510,10.674,84.31,84.263,17.86133883]
[1772818116716,17.50379464,84.319,84.263,17.86133883]
[1772818117715,17.50379464,84.335,84.263,17.86133883]
[1772818118909,10.671,84.33,84.266,17.86133883]
[1772818119812,10.671,84.33,84.25,7.90519273]
[1772818119813,10.671,84.33,84.273,17.86133883]
[1772818120414,17.50379464,84.335,84.275,17.86133883]
[1772818121615,17.50379464,84.335,84.281,10.677]
[1772818121913,17.50379464,84.335,84.282,17.86133883]
[1772818122711,17.50379464,84.335,84.284,17.86133883]
[1772818123415,17.50379464,84.33,84.284,17.86133883]
[1772818123616,17.50379464,84.33,84.273,10.679]
[1772818123806,17.50379464,84.33,84.274,17.86133883]
[1772818124812,10.672,84.327,84.277,17.86133883]
[1772818126620,10.671,84.335,84.28,17.86133883]
[1772818127610,10.672,84.327,84.28,17.86133883]
[1772818131929,17.50379464,84.345,84.282,17.86133883]
[1772818132421,17.50379464,84.345,84.283,10.677]
[1772818132824,17.50379464,84.345,84.283,28.53833883]
[1772818133018,17.50379464,84.345,84.284,17.86133883]
[1772818133722,17.50379464,84.345,84.287,28.53833883]
[1772818134519,10.671,84.331,84.287,28.53833883]
[1772818134819,3.68145534,84.33,84.287,17.86133883]
[1772818135027,10.672,84.325,84.287,17.86133883]
[1772818135223,17.50379464,84.339,84.287,17.86133883]
[1772818135725,3.68145534,84.35,84.291,17.07983583]
[1772818135930,10.67,84.342,84.296,27.75583583]
[1772818136131,3.68145534,84.34,84.297,17.07983583]
[1772818137227,10.67,84.339,84.298,10.675]
[1772818141834,3.6806325,84.36,84.306,18.50225099]
[1772818142130,18.26735238,84.364,84.311,18.50225099]
[1772818142530,10.669,84.353,84.311,18.50225099]
[1772818142929,18.26735238,84.364,84.32,22.18288349]
[1772818143128,18.26735238,84.378,84.32,22.18288349]
[1772818143328,18.26735238,84.378,84.33,22.18288349]
[1772818143329,9.74949214,84.377,84.33,22.18288349]
[1772818143529,18.26735238,84.378,84.33,22.18288349]
[1772818143924,21.94798488,84.37,84.3,18.50225099]
[1772818144133,3.6806325,84.36,84.31,3.6806325]
[1772818144435,3.6806325,84.36,84.31,22.18288349]
[1772818144837,10.668,84.359,84.31,22.18288349]
[1772818145430,10.667,84.367,84.314,18.50225099]
[1772818145632,10.667,84.367,84.321,18.50225099]
[1772818146532,10.668,84.36,84.321,18.50225099]
[1772818146934,3.6806325,84.38,84.321,18.50225099]
[1772818147637,21.94798488,84.38,84.332,18.50225099]
[1772818148836,10.665,84.379,84.332,18.50225099]
[1772818149230,21.94798488,84.37,84.316,18.50225099]
[1772818149430,3.6806325,84.36,84.316,18.50225099]
[1772818151139,3.6806325,84.35,84.316,18.50225099]
[1772818152233,18.26735238,84.359,84.316,18.50225099]
[1772818152434,10.668,84.353,84.316,18.50225099]
[1772818154236,21.94798488,84.35,84.302,18.50225099]
[1772818154838,21.94798488,84.35,84.303,18.50225099]
[1772818155841,10.669,84.346,84.307,10.674]
[1772818156438,10.669,84.346,84.303,18.50225099]
[1772818156641,14.3506325,84.34,84.303,18.50225099]
[1772818156938,14.3506325,84.34,84.259,21.361]
[1772818156939,14.3506325,84.34,84.281,18.50225099]
[1772818157142,32.61798488,84.34,84.281,18.50225099]
[1772818157346,3.6806325,84.33,84.281,18.50225099]
[1772818157640,3.6806325,84.35,84.3,3.6806325]
[1772818157846,18.26735238,84.35,84.31,3.6806325]
[1772818158048,18.26735238,84.35,84.311,10.674]
[1772818158545,21.94798488,84.35,84.301,18.50225099]
[1772818159138,21.94798488,84.35,84.259,11.88]
[1772818159139,18.26735238,84.383,84.311,18.50225099]
[1772818159344,21.323,84.409,84.311,18.50225099]
[1772818159345,21.94798488,84.36,84.311,18.50225099]
[1772818160145,3.6806325,84.37,84.321,18.50225099]
[1772818161152,18.26735238,84.374,84.33,22.18288349]
[1772818161748,18.26735238,84.374,84.33,18.50225099]
[1772818162052,18.26735238,84.374,84.33,29.17325099]
[1772818162248,3.6806325,84.38,84.33,18.50225099]
[1772818162447,18.26735238,84.389,84.338,18.50225099]
[1772818162947,18.26735238,84.379,84.324,18.50225099]
[1772818163145,3.6806325,84.37,84.324,18.50225099]
[1772818163747,3.6806325,84.36,84.311,18.50225099]
[1772818164155,21.94798488,84.36,84.311,18.50225099]
[1772818164553,3.6806325,84.35,84.311,18.50225099]
[1772818165852,18.26735238,84.339,84.29,3.6806325]
[1772818166057,3.6806325,84.32,84.282,18.50225099]
[1772818166355,3.6806325,84.35,84.292,18.50225099]
[1772818166554,3.6806325,84.35,84.29,3.6806325]
[1772818166555,3.6806325,84.35,84.3,22.18288349]
[1772818166762,21.94798488,84.35,84.3,18.50225099]
[1772818166963,3.6806325,84.34,84.3,18.50225099]
[1772818167864,10.67,84.339,84.3,18.50225099]
[1772818168059,3.6806325,84.35,84.302,18.50225099]
[1772818168263,3.6806325,84.36,84.302,18.50225099]
[1772818168463,3.6806325,84.35,84.302,18.50225099]
[1772818169766,3.6806325,84.35,84.304,10.675]
[1772818170067,3.6806325,84.35,84.305,18.50225099]
[1772818171764,3.6806325,84.34,84.305,18.50225099]
[1772818172162,3.6806325,84.36,84.305,18.50225099]
[1772818172466,14.3486325,84.36,84.311,17.09894298]
[1772818172666,3.6806325,84.36,84.311,17.09894298]
[1772818173465,10.668,84.353,84.311,17.09894298]
[1772818173670,3.6806325,84.35,84.311,17.09894298]
[1772818173871,21.39788945,84.35,84.293,17.09894298]
[1772818174860,10.669,84.347,84.3,17.09894298]
[1772818175060,10.669,84.347,84.3,20.77957548]
[1772818175967,10.669,84.347,84.302,10.675]
[1772818176166,3.6806325,84.33,84.26,17.09894298]
[1772818176373,3.6806325,84.33,84.288,17.09894298]
[1772818176670,17.71725695,84.334,84.288,17.09894298]
[1772818176874,28.38825695,84.334,84.291,17.09894298]
[1772818177269,17.71725695,84.334,84.291,17.09894298]
[1772818178070,3.6806325,84.34,84.291,17.09894298]
[1772818178571,10.671,84.331,84.291,17.09894298]
[1772818178765,3.6806325,84.34,84.291,17.09894298]
[1772818179362,10.67,84.338,84.292,10.676]
[1772818179571,10.67,84.338,84.293,17.09894298]
[1772818180775,10.67,84.338,84.294,27.77494298]
[1772818181878,10.99413089,84.372,84.206,51.23297096]
[1772818181879,3.6806325,84.33,84.28,20.77957548]
[1772818182078,3.6806325,84.33,84.28,17.09894298]
[1772818182272,3.6806325,84.32,84.28,17.09894298]
[1772818182468,3.6806325,84.31,84.28,17.09894298]
[1772818182670,3.6806325,84.31,84.261,17.09894298]
[1772818183575,17.71725695,84.309,84.261,17.09894298]
[1772818184583,3.6806325,84.31,84.233,21.368]
[1772818184584,3.6806325,84.33,84.278,17.09894298]
[1772818184778,3.6806325,84.33,84.281,17.09894298]
[1772818185480,3.6806325,84.3,84.253,17.09894298]
[1772818185680,3.6806325,84.31,84.253,17.09894298]
[1772818186777,14.3546325,84.31,84.265,17.09894298]
[1772818186979,3.6806325,84.32,84.271,17.09894298]
[1772818187484,3.6806325,84.29,84.236,17.09894298]
[1772818187683,3.6806325,84.3,84.251,17.09894298]
[1772818187881,3.6806325,84.31,84.251,17.09894298]
[1772818188382,3.6806325,84.3,84.251,17.09894298]
[1772818188776,3.6806325,84.3,84.253,17.09894298]
[1772818190484,14.3556325,84.3,84.253,17.09894298]
[1772818191585,3.6806325,84.31,84.261,17.09894298]
[1772818191780,3.6806325,84.3,84.261,17.09894298]
[1772818191981,3.6806325,84.3,84.241,17.09894298]
[1772818192887,10.675,84.299,84.251,17.09894298]
[1772818193987,10.676,84.293,84.251,17.09894298]
[1772818194688,10.677,84.289,84.251,17.09894298]
[1772818194887,3.6806325,84.28,84.231,17.09894298]
[1772818195091,10.679,84.269,84.231,17.09894298]
[1772818196287,3.6806325,84.27,84.231,17.09894298]
[1772818198785,3.6806325,84.27,84.233,10.684]
[1772818199089,21.39788945,84.28,84.233,28.19445127]
[1772818199282,17.62898854,84.3,84.241,17.51045127]
[1772818199487,21.30962104,84.3,84.25,3.6806325]
[1772818199691,17.62898854,84.3,84.25,21.19108377]
[1772818199990,3.6806325,84.29,84.25,17.51045127]
[1772818200482,21.31380299,84.3,84.25,17.51045127]
[1772818200886,3.68481445,84.31,84.253,17.51045127]
[1772818201088,17.62898854,84.318,84.271,17.51045127]
[1772818201283,3.68481445,84.31,84.271,17.51045127]
[1772818201684,3.68481445,84.3,84.256,17.57142219]
[1772818201992,16.54158557,84.308,84.256,17.57142219]
[1772818202387,3.68481445,84.29,84.242,17.57142219]
[1772818203090,3.68481445,84.3,84.251,17.57142219]
[1772818203289,16.54158557,84.309,84.251,17.57142219]
[1772818203592,16.54158557,84.309,84.261,17.57142219]
[1772818203794,10.674,84.307,84.263,10.68]
[1772818204192,10.674,84.307,84.263,28.25142219]
[1772818204399,3.68481445,84.32,84.27,21.25623664]
[1772818204588,16.54158557,84.324,84.27,21.25623664]
[1772818204985,10.672,84.322,84.27,21.25623664]
[1772818205186,3.68481445,84.32,84.27,21.25623664]
[1772818205498,21.337,84.354,84.207,11.88]
[1772818205499,16.54158557,84.309,84.254,17.57142219]
[1772818205693,16.54158557,84.309,84.261,17.57142219]
[1772818205997,3.68481445,84.31,84.261,17.57142219]
[1772818206591,10.673,84.318,84.272,17.57142219]
[1772818206995,3.68481445,84.32,84.272,17.57142219]
[1772818207496,16.54158557,84.318,84.272,28.25042219]
[1772818207696,3.68481445,84.31,84.272,17.57142219]
[1772818208398,10.674,84.309,84.272,17.57142219]
[1772818208596,16.54158557,84.318,84.272,17.57142219]
[1772818209694,10.674,84.309,84.272,17.57142219]
[1772818209897,10.674,84.309,84.26,3.68481445]
[1772818210097,10.674,84.309,84.27,3.68481445]
[1772818210299,10.675,84.302,84.27,3.68481445]
[1772818210497,16.54158557,84.318,84.27,3.68481445]
[1772818211298,27.21458557,84.318,84.272,10.679]
[1772818211794,27.21458557,84.318,84.27,3.68481445]
[1772818211795,16.54158557,84.318,84.27,3.68481445]
[1772818212294,3.68481445,84.3,84.26,17.57142219]
[1772818212501,16.54158557,84.305,84.26,17.57142219]
[1772818212998,3.68481445,84.32,84.271,17.57142219]
[1772818213696,16.54158557,84.324,84.271,17.57142219]
[1772818213891,10.673,84.316,84.273,10.679]
[1772818215493,16.54158557,84.303,84.257,17.57142219]
[1772818216003,10.676,84.294,84.257,17.57142219]
[1772818216399,16.54158557,84.303,84.257,17.57142219]
[1772818216601,3.68481445,84.31,84.26,21.25623664]
[1772818216901,16.54158557,84.319,84.27,3.68481445]
[1772818217798,10.674,84.309,84.27,3.68481445]
[1772818218297,16.54158557,84.319,84.272,10.679]
[1772818218298,10.673,84.316,84.272,10.679]
[1772818218498,16.54158557,84.329,84.28,3.68481445]
[1772818218898,16.54158557,84.329,84.273,17.57142219]
[1772818219400,10.673,84.318,84.274,10.678]
[1772818219793,16.54158557,84.339,84.291,17.57142219]
[1772818220806,10.671,84.332,84.291,17.57142219]
[1772818222401,3.68481445,84.35,84.3,21.25623664]
[1772818222599,16.54158557,84.349,84.3,21.25623664]
[1772818222911,16.54158557,84.349,84.3,17.57142219]
[1772818223405,10.67,84.339,84.3,17.57142219]
[1772818223799,16.54158557,84.339,84.285,17.57142219]
[1772818224104,21.332,84.373,84.231,11.88]
[1772818224105,3.68481445,84.32,84.273,17.57142219]
[1772818224300,10.672,84.323,84.273,17.57142219]
[1772818224900,16.54158557,84.329,84.282,17.57142219]
[1772818225101,3.68481445,84.34,84.291,17.57142219]
[1772818225306,20.22640002,84.34,84.291,17.57142219]
[1772818226206,10.672,84.327,84.291,17.57142219]
[1772818227007,10.673,84.321,84.277,17.57142219]
[1772818227401,10.672,84.329,84.28,17.57142219]
[1772818227598,10.672,84.329,84.28,21.25623664]
[1772818229006,16.54158557,84.34,84.29,21.25623664]
[1772818229912,10.671,84.329,84.29,21.25623664]
[1772818230107,16.54158557,84.329,84.28,3.68481445]
[1772818230610,10.673,84.315,84.276,17.57142219]
[1772818232310,16.21259809,84.314,84.266,10.679]
[1772818232609,3.68481445,84.31,84.266,10.679]
[1772818232805,3.68481445,84.33,84.277,16.58019329]
[1772818233010,3.68481445,84.33,84.281,16.58019329]
[1772818233407,16.21259809,84.309,84.259,16.58019329]
[1772818233809,16.21259809,84.309,84.261,16.58019329]
[1772818234410,3.68481445,84.32,84.267,16.58019329]
[1772818234614,3.68481445,84.32,84.27,20.26500774]
[1772818234809,19.89741254,84.32,84.27,20.26500774]
[1772818235011,19.89741254,84.32,84.27,16.58019329]
[1772818235217,16.21259809,84.338,84.281,16.58019329]
[1772818235414,21.332,84.374,84.281,16.58019329]
[1772818235415,16.21259809,84.329,84.281,16.58019329]
[1772818236109,16.21259809,84.329,84.282,10.677]
[1772818236909,10.672,84.328,84.282,10.677]
[1772818237312,16.21259809,84.329,84.288,10.677]
[1772818237910,16.21259809,84.342,84.299,16.58019329]
[1772818238910,10.669,84.347,84.301,16.58019329]
[1772818240018,26.88159809,84.347,84.301,16.58019329]
[1772818240220,3.68481445,84.33,84.286,16.58019329]
[1772818240416,19.89741254,84.34,84.29,3.68481445]
[1772818240615,3.68481445,84.34,84.291,16.58019329]
[1772818241623,10.67,84.344,84.301,16.58019329]
[1772818241819,10.67,84.344,84.303,16.58019329]
[1772818242723,10.671,84.336,84.303,16.58019329]
[1772818242923,19.89741254,84.35,84.303,16.58019329]
[1772818244525,3.68481445,84.34,84.295,27.25619329]
[1772818244718,10.671,84.336,84.296,16.58019329]
[1772818245729,3.68481445,84.34,84.296,16.58019329]
[1772818246220,10.67,84.339,84.298,10.675]
[1772818246424,10.67,84.339,84.296,16.58019329]
[1772818248324,10.671,84.333,84.296,16.58019329]
[1772818250328,16.21259809,84.338,84.296,16.58019329]
[1772818251031,10.669,84.349,84.301,16.58019329]
[1772818251229,16.21259809,84.349,84.301,16.58019329]
[1772818252021,16.21259809,84.339,84.287,16.58019329]
[1772818252227,3.68481445,84.33,84.287,16.58019329]
[1772818252423,3.68481445,84.34,84.291,16.58019329]
[1772818252732,19.89741254,84.35,84.291,16.58019329]
[1772818253534,16.21259809,84.35,84.304,16.58019329]
[1772818253930,19.89741254,84.35,84.304,16.58019329]
[1772818254130,19.89741254,84.34,84.29,16.58019329]
[1772818254326,3.68481445,84.33,84.29,16.58019329]
[1772818256736,10.67,84.339,84.297,10.675]
[1772818256936,10.67,84.339,84.256,21.362]
[1772818256937,10.669,84.349,84.301,16.48579215]
[1772818257636,3.68481445,84.35,84.301,16.48579215]
[1772818257935,19.76290886,84.35,84.301,16.48579215]
[1772818258432,10.669,84.346,84.301,16.48579215]
[1772818258632,3.68481445,84.32,84.28,16.48579215]
[1772818259135,16.07809441,84.327,84.28,16.48579215]
[1772818259737,10.672,84.326,84.281,10.677]
[1772818260034,3.68481445,84.32,84.281,10.677]
[1772818260436,30.4338127,84.32,84.28,16.48579215]
[1772818262336,17.7182704,84.316,84.264,16.92638619]
[1772818262537,21.42526217,84.38,84.172,166.316]
[1772818262538,21.40098869,84.29,84.231,16.92638619]
[1772818262733,3.68271829,84.28,84.231,16.92638619]
[1772818262940,3.68271829,84.27,84.231,16.92638619]
[1772818263640,3.68271829,84.26,84.216,16.92638619]
[1772818264744,3.68271829,84.27,84.221,16.92638619]
[1772818265446,10.678,84.275,84.221,16.92638619]
[1772818265936,10.678,84.275,84.224,16.92638619]
[1772818266739,3.68271829,84.27,84.226,16.92638619]
[1772818266940,3.68271829,84.28,84.226,16.92638619]
[1772818267841,3.68271829,84.28,84.227,27.61038619]
[1772818268037,3.68271829,84.27,84.228,16.92638619]
[1772818268238,3.68271829,84.26,84.211,16.92638619]
[1772818268939,10.68,84.258,84.214,16.92638619]
[1772818269341,3.68271829,84.25,84.214,16.92638619]
[1772818269542,3.68271829,84.24,84.199,16.92638619]
[1772818270737,10.683,84.239,84.199,16.92638619]
[1772818271740,10.683,84.239,84.19,3.68271829]
[1772818272342,3.68271829,84.23,84.189,10.689]
[1772818273239,3.68271829,84.23,84.184,16.92638619]
[1772818273240,3.68271829,84.22,84.184,16.92638619]
[1772818273841,17.7182704,84.229,84.184,16.92638619]
[1772818274041,3.68271829,84.24,84.191,16.92638619]
[1772818274242,3.68271829,84.25,84.201,16.92638619]
[1772818275340,10.68,84.258,84.203,16.92638619]
[1772818276242,10.681,84.251,84.203,16.92638619]
[1772818276443,21.40098869,84.25,84.19,20.60910448]
[1772818276646,3.68271829,84.24,84.19,20.60910448]
[1772818277146,3.68271829,84.24,84.19,16.92638619]
[1772818277448,3.68271829,84.23,84.19,16.92638619]
[1772818279142,17.7182704,84.24,84.192,16.92638619]
[1772818279349,3.68271829,84.25,84.201,16.92638619]
[1772818279850,3.68271829,84.26,84.21,20.60910448]
[1772818280039,3.68271829,84.27,84.22,20.60910448]
[1772818280445,17.7182704,84.273,84.22,16.92638619]
[1772818280643,28.3972704,84.273,84.22,16.92638619]
[1772818280841,17.7182704,84.272,84.22,16.92638619]
[1772818281350,17.7182704,84.27,84.22,16.92638619]
[1772818281547,17.7182704,84.27,84.203,16.92638619]
[1772818282046,17.7182704,84.269,84.211,16.92638619]
[1772818282345,17.7182704,84.289,84.211,16.92638619]
[1772818283648,17.7182704,84.271,84.22,16.92638619]
[1772818284950,10.68,84.264,84.22,16.92638619]
[1772818285543,10.681,84.257,84.22,16.92638619]
[1772818286049,17.7182704,84.256,84.206,16.92638619]
[1772818286449,17.7182704,84.256,84.209,10.687]
[1772818287243,10.681,84.255,84.215,10.686]
[1772818287552,17.7182704,84.285,84.216,16.92638619]
[1772818288247,10.681,84.256,84.216,16.92638619]
[1772818288454,28.3992704,84.256,84.216,16.92638619]
[1772818288950,10.68,84.264,84.217,27.61238619]
[1772818289251,17.7182704,84.27,84.217,16.92638619]
[1772818289843,17.7182704,84.27,84.181,16.92638619]
[1772818290044,17.7182704,84.283,84.181,16.92638619]
[1772818290245,17.7182704,84.269,84.181,16.92638619]
[1772818290555,10.683,84.235,84.19,10.689]
[1772818290855,17.7182704,84.241,84.181,16.92638619]
[1772818291054,10.684,84.229,84.188,10.689]
[1772818292257,17.7182704,84.241,84.181,16.92638619]
[1772818293354,10.684,84.229,84.189,10.689]
[1772818293855,10.685,84.223,84.182,10.69]
[1772818294157,10.685,84.223,84.182,27.82454888]
[1772818294349,10.684,84.233,84.183,17.13454888]
[1772818294550,16.86165562,84.232,84.183,17.13454888]
[1772818295758,16.86165562,84.232,84.193,10.689]
[1772818296154,16.86165562,84.242,84.194,17.13454888]
[1772818296458,16.86165562,84.242,84.154,21.388]
[1772818296459,16.86165562,84.274,84.204,17.13454888]
[1772818297747,10.679,84.272,84.224,10.685]
[1772818297959,16.86165562,84.274,84.225,17.13454888]
[1772818298351,16.86165562,84.251,84.203,17.13454888]
[1772818298549,16.86165562,84.251,84.171,17.13454888]
[1772818298956,10.684,84.232,84.184,10.69]
[1772818299459,10.684,84.232,84.184,27.82454888]
[1772818299659,16.86165562,84.239,84.191,10.689]
[1772818299961,16.86165562,84.239,84.184,17.13454888]
[1772818300958,10.684,84.229,84.184,27.82454888]
[1772818301557,27.54465562,84.239,84.191,10.689]
[1772818301761,27.54465562,84.239,84.191,27.82354888]
[1772818302461,27.54465562,84.239,84.192,17.13454888]
[1772818302763,16.86165562,84.239,84.198,10.688]
[1772818302956,16.86165562,84.239,84.192,17.13454888]
[1772818303358,16.86165562,84.253,84.196,17.13454888]
[1772818304260,16.86165562,84.253,84.171,17.13454888]
[1772818304764,10.684,84.232,84.186,27.82454888]
[1772818305355,10.684,84.232,84.188,10.689]
[1772818306659,10.684,84.232,84.188,27.82354888]
[1772818307855,10.684,84.232,84.191,10.689]
[1772818309661,10.684,84.232,84.191,27.82354888]
[1772818310260,16.86165562,84.272,84.195,17.13454888]
[1772818310566,21.68646975,84.305,84.195,17.13454888]
[1772818310567,16.86165562,84.279,84.195,17.13454888]
[1772818311066,16.86165562,84.27,84.218,17.13454888]
[1772818311268,16.86165562,84.27,84.191,17.13454888]
[1772818312466,16.86165562,84.27,84.21,17.13454888]
[1772818312970,16.86165562,84.298,84.211,17.13454888]
[1772818313167,16.86165562,84.296,84.211,17.13454888]
[1772818313468,10.678,84.281,84.231,10.684]
[1772818313873,10.678,84.281,84.231,27.81854888]
[1772818314563,10.678,84.281,84.233,27.81754888]
[1772818314768,16.86165562,84.305,84.234,17.13454888]
[1772818314964,16.86165562,84.319,84.234,17.13454888]
[1772818315163,16.86165562,84.317,84.234,17.13454888]
[1772818315359,16.40838724,84.306,84.254,10.681]
[1772818315771,10.676,84.294,84.248,16.46898642]
[1772818316464,10.676,84.294,84.235,10.683]
[1772818316465,16.40838724,84.304,84.235,10.683]
[1772818316676,16.40838724,84.302,84.235,10.683]
[1772818316968,16.40838724,84.3,84.235,10.683]
[1772818317165,10.676,84.295,84.235,10.683]
[1772818317371,16.40838724,84.294,84.24,10.683]
[1772818317567,16.40838724,84.294,84.24,27.15198642]
[1772818317770,16.40838724,84.294,84.241,16.46898642]
[1772818317972,16.40838724,84.294,84.242,10.682]
[1772818319274,16.40838724,84.292,84.241,16.46898642]
[1772818319868,16.40838724,84.288,84.241,16.46898642]
[1772818320270,16.40838724,84.288,84.242,16.46898642]
[1772818320670,16.40838724,84.288,84.211,16.46898642]
[1772818320872,10.679,84.273,84.228,10.684]
[1772818321077,16.40838724,84.272,84.191,16.46898642]
[1772818321874,10.68,84.265,84.218,16.75332169]
[1772818322373,15.89097045,84.299,84.218,16.75332169]
[1772818322676,15.89097045,84.3,84.228,16.75332169]
[1772818323276,15.89097045,84.3,84.239,16.75332169]
[1772818324376,10.677,84.287,84.239,16.75332169]
[1772818324879,10.676,84.294,84.241,16.75332169]
[1772818325076,26.56697045,84.294,84.241,16.75332169]
[1772818326775,10.677,84.289,84.241,16.75332169]
[1772818326976,15.89097045,84.293,84.241,16.75332169]
[1772818327277,15.89097045,84.293,84.242,10.682]
[1772818327473,10.677,84.284,84.241,16.75332169]
[1772818327774,15.89097045,84.283,84.211,16.75332169]
[1772818327978,10.68,84.264,84.211,16.75332169]
[1772818328276,15.89097045,84.269,84.211,16.75332169]
[1772818328477,15.89097045,84.298,84.234,16.75332169]
[1772818328775,15.89097045,84.28,84.201,16.75332169]
[1772818329177,26.56897045,84.274,84.222,16.75332169]
[1772818329372,15.89097045,84.274,84.222,16.75332169]
[1772818329571,21.348,84.309,84.234,16.75332169]
[1772818329572,15.89097045,84.289,84.234,16.75332169]
[1772818330475,10.678,84.282,84.234,16.75332169]
[1772818331579,15.89097045,84.289,84.234,16.75332169]
[1772818331970,10.678,84.281,84.236,16.75332169]
[1772818332673,10.677,84.29,84.236,16.75332169]
[1772818332878,15.89097045,84.305,84.236,16.75332169]
[1772818333477,10.677,84.283,84.236,16.75332169]
[1772818334072,12.00322584,84.319,84.226,10.684]
[1772818334073,15.89097045,84.275,84.226,10.684]
[1772818334675,10.681,84.257,84.221,16.75332169]
[1772818334878,15.89097045,84.275,84.221,16.75332169]
[1772818335283,10.679,84.271,84.223,16.75332169]
[1772818336884,10.679,84.271,84.228,10.684]
[1772818337784,10.679,84.271,84.228,27.43732169]
[1772818338079,15.89097045,84.29,84.234,16.75332169]
[1772818338880,15.89097045,84.289,84.22,16.75332169]
[1772818339383,10.68,84.259,84.22,16.75332169]
[1772818340282,15.89097045,84.271,84.223,16.75332169]
[1772818340581,15.89097045,84.288,84.223,16.75332169]
[1772818341087,10.678,84.276,84.226,10.684]
[1772818341284,10.678,84.276,84.227,16.75332169]
[1772818342883,10.678,84.276,84.229,16.75332169]
[1772818343288,15.89097045,84.276,84.229,16.75332169]
[1772818344390,10.679,84.268,84.229,16.75332169]
[1772818345689,26.57097045,84.263,84.223,10.685]
[1772818348187,12.00322584,84.319,84.169,16.75332169]
[1772818348188,3.68661175,84.24,84.169,16.75332169]
[1772818348389,3.68661175,84.23,84.181,16.75332169]
[1772818348590,15.89097045,84.24,84.181,16.75332169]
[1772818349186,15.89097045,84.24,84.195,16.75332169]
[1772818349790,10.684,84.234,84.195,16.75332169]
[1772818350789,15.89097045,84.255,84.195,16.75332169]
[1772818351791,15.89097045,84.255,84.206,17.12913527]
[1772818352494,26.57197045,84.255,84.209,10.687]
[1772818352690,26.57197045,84.255,84.21,17.12913527]
[1772818353197,16.91227248,84.248,84.171,17.12913527]
[1772818354892,10.682,84.243,84.193,10.689]
[1772818355094,16.91227248,84.263,84.194,17.12913527]
[1772818355495,27.59227248,84.259,84.206,17.12913527]
[1772818355696,16.91227248,84.258,84.206,17.12913527]
[1772818356896,10.681,84.256,84.21,27.81513527]
[1772818357598,16.91227248,84.258,84.218,10.685]
[1772818358100,16.91227248,84.258,84.211,17.12913527]
[1772818358804,16.91227248,84.255,84.211,17.12913527]
[1772818361202,16.91227248,84.255,84.213,17.12913527]
[1772818361495,10.68,84.264,84.213,17.12913527]
[1772818361898,16.91227248,84.299,84.223,17.12913527]
[1772818362102,16.91227248,84.297,84.223,17.12913527]
[1772818362299,16.91227248,84.295,84.223,17.12913527]
[1772818362501,16.91227248,84.293,84.231,17.12913527]
[1772818362700,26.85790365,84.292,84.231,17.12913527]
[1772818362903,9.94563117,84.291,84.231,17.12913527]
[1772818363101,26.85897958,84.29,84.231,17.12913527]
[1772818363303,21.36,84.262,84.182,17.12913527]
[1772818363600,21.36,84.262,84.118,177.0]
[1772818363601,16.91227248,84.229,84.123,17.12913527]
[1772818363797,10.689,84.193,84.126,10.697]
[1772818364003,16.91227248,84.19,84.077,17.12913527]
[1772818364197,11.69618148,84.19,84.076,202.77832775]
[1772818364403,16.91227248,84.187,84.101,17.12913527]
[1772818364604,24.8205197,84.2,84.111,17.12913527]
[1772818364798,16.91227248,84.198,84.111,17.12913527]
[1772818365708,16.91227248,84.195,84.132,17.12913527]
[1772818366205,27.60427248,84.17,84.097,17.12913527]
[1772818366902,16.91227248,84.17,84.097,17.12913527]
[1772818367511,16.91227248,84.186,84.097,17.12913527]
[1772818367708,10.69,84.182,84.115,17.12913527]
[1772818368517,16.91227248,84.203,84.131,17.12913527]